[Event "White Rook U14 Final 2019"]
[Site "Sochi"]
[Date "2019.06.06"]
[Round "4.34"]
[White "Sadekov, Maksim"]
[Black "Vorzhevitin, Dmitriy"]
[Result "1/2-1/2"]
[ECO "E61"]
[WhiteElo "1541"]
[BlackElo "1346"]
[Annotator "NA RC"]
[PlyCount "85"]
[EventDate "2019.06.02"]
[EventCountry "RUS"]
[SourceTitle "playchess.com"]
[Source "ChessBase"]
[SourceQuality "1"]
[TimeControl "5400+30"]

1. d4 {[%emt 0:00:00]} Nf6 {[%emt 0:00:23]} 2. c4 {[%emt 0:00:08]} g6 {[%emt 0:00:24]} 3. e3 {[%emt 0:02:25]} Bg7 {[%emt 0:01:52]} 4. Nc3 {[%emt 0:00:17]} d6 {[%emt 0:00:15]} 5. Nf3 {[%emt 0:12:17]} Nbd7 {[%emt 0:00:40]} 6. Be2 {[%emt 0:00:40]} c6 {[%emt 0:01:45]} 7. O-O {[%emt 0:00:08]} O-O {[%emt 0:00:08]} 8. Qc2 {[%emt 0:00:24]} Qc7 {[%emt 0:01:37]} 9. Bd2 {[%emt 0:04:47]} e5 {[%emt 0:02:56]} 10. Rfd1 {[%emt 0:13:41]} Rd8 {[%emt 0:04:26]} 11. Be1 {[%emt 0:03:56]} h5 {[%emt 0:16:01]} 12. dxe5 {[%emt 0:12:34]} Nxe5 {[%emt 0:05:52]} 13. Nxe5 {[%emt 0:02:05]} dxe5 {[%emt 0:00:08]} 14. Rxd8+ {[%emt 0:00:39]} Qxd8 {[%emt 0:00:08]} 15. Rd1 {[%emt 0:00:00]} Qc7 {[%emt 0:01:03]} 16. h3 {[%emt 0:18:49]} Be6 {[%emt 0:03:43]} 17. b3 {[%emt 0:04:54]} Rd8 {[%emt 0:00:15]} 18. Rxd8+ {[%emt 0:02:05]} Qxd8 {[%emt 0:00:08]} 19. Qd2 {[%emt 0:01:57]} Qc7 {[%emt 0:07:44]} 20. Bd3 {[%emt 0:02:00]} Qc8 {[%emt 0:04:29]} 21. Ne4 {[%emt 0:01:22]} Nxe4 {[%emt 0:05:40]} 22. Bxe4 {[%emt 0:00:00]} Qd7 {[%emt 0:01:36]} 23. Qxd7 {[%emt 0:00:28]} Bxd7 {[%emt 0:00:00]} 24. Bc3 {[%emt 0:00:28]} f5 {[%emt 0:05:58]} 25. Bc2 {[%emt 0:01:14]} Kf7 {[%emt 0:03:20]} 26. Kf1 {[%emt 0:00:12]} b6 {[%emt 0:01:09]} 27. Ke2 {[%emt 0:00:49]} c5 {[%emt 0:00:25]} 28. a4 {[%emt 0:01:22]} a5 {[%emt 0:00:41]} 29. Bb1 {[%emt 0:00:36]} Ke6 {[%emt 0:00:06]} 30. f3 {[%emt 0:00:55]} Bf6 {[%emt 0:00:54]} 31. e4 {[%emt 0:01:22]} f4 {[%emt 0:00:28]} 32. Be1 {[%emt 0:00:47]} Kf7 {[%emt 0:00:50]} 33. Bd3 {[%emt 0:00:16]} g5 {[%emt 0:00:11]} 34. Kd1 {[%emt 0:00:33]} Kg6 {[%emt 0:00:23]} 35. Bf1 {[%emt 0:00:23]} Bd8 {[%emt 0:00:45]} 36. Bc3 {[%emt 0:00:11]} Bf6 {[%emt 0:00:16]} 37. Be1 {[%emt 0:00:12]} g4 {[%emt 0:00:16]} 38. Kc2 {[%emt 0:01:25]} g3 {[%emt 0:01:54]} 39. Kd1 {[%emt 0:01:14]} Kg5 {[%emt 0:00:30]} 40. Kc2 {[%emt 0:00:05]} Kh4 {[%emt 0:00:52]} 41. Kd1 {[%emt 0:00:11]} Kg5 {[%emt 0:00:15]} 42. Kc2 {[%emt 0:00:05]} Kg6 {[%emt 0:00:05]} 43. Kd1 {[%emt 0:00:05]} 1/2-1/2

[Event "White Rook U14 Final 2019"]
[Site "Sochi"]
[Date "2019.06.06"]
[Round "4.35"]
[White "Zenkov, Maksim"]
[Black "Lazojev, Mark"]
[Result "1-0"]
[ECO "C50"]
[WhiteElo "1394"]
[BlackElo "1179"]
[Annotator "NA RC"]
[PlyCount "93"]
[EventDate "2019.06.02"]
[EventCountry "RUS"]
[SourceTitle "playchess.com"]
[Source "ChessBase"]
[SourceQuality "1"]
[TimeControl "5400+30"]

1. e4 {[%emt 0:00:00]} e5 {[%emt 0:00:07]} 2. Nf3 {[%emt 0:00:00]} Nc6 {[%emt 0:00:16]} 3. d4 {[%emt 0:00:00]} exd4 {[%emt 0:00:08]} 4. Bc4 {[%emt 0:00:08]} Be7 {[%emt 0:02:41]} 5. c3 {[%emt 0:00:56]} d6 {[%emt 0:02:31]} 6. cxd4 {[%emt 0:02:00]} Bg4 {[%emt 0:02:09]} 7. Be3 {[%emt 0:13:30]} Nf6 {[%emt 0:12:18]} 8. Qb3 {[%emt 0:02:17]} Na5 {[%emt 0:17:21]} 9. Qa4+ {[%emt 0:02:01]} c6 {[%emt 0:01:28]} 10. Bd3 {[%emt 0:01:03]} b5 {[%emt 0:12:50]} 11. Qc2 {[%emt 0:01:18]} Rc8 {[%emt 0:06:42]} 12. Nbd2 {[%emt 0:03:55]} g6 {[%emt 0:13:22]} 13. Bh6 {[%emt 0:04:12]} Qd7 {[%emt 0:07:45]} 14. Qc3 {[%emt 0:09:07]} Nb7 {[%emt 0:05:28]} 15. a4 {[%emt 0:02:14]} bxa4 {[%emt 0:06:45]} 16. Rxa4 {[%emt 0:02:05]} Ra8 {[%emt 0:02:13]} 17. Ra6 {[%emt 0:04:24]} c5 {[%emt 0:02:47]} 18. Qb3 {[%emt 0:01:58]} Qc8 {[%emt 0:01:02]} 19. O-O {[%emt 0:05:47]} cxd4 {[%emt 0:00:57]} 20. Bb5+ {[%emt 0:16:33]} Bd7 {[%emt 0:00:40]} 21. Bxd7+ {[%emt 0:07:51]} Qxd7 {[%emt 0:00:20]} 22. Rc1 {[%emt 0:03:44]} Nc5 {[%emt 0:00:40]} 23. Rxc5 {[%emt 0:00:05]} dxc5 {[%emt 0:00:30]} 24. Ne5 {[%emt 0:00:06]} Qc7 {[%emt 0:00:30]} 25. Qxf7+ {[%emt 0:00:05]} Kd8 {[%emt 0:00:26]} 26. Rxf6 {[%emt 0:01:07]} Qxe5 {[%emt 0:00:34]} 27. Bg7 {[%emt 0:01:27]} Bxf6 {[%emt 0:00:30]} 28. Bxf6+ {[%emt 0:00:04]} Qxf6 {[%emt 0:00:30]} 29. Qxf6+ {[%emt 0:00:04]} Kd7 {[%emt 0:00:11]} 30. e5 {[%emt 0:01:11]} Rab8 {[%emt 0:00:26]} 31. Qd6+ {[%emt 0:00:06]} Kc8 {[%emt 0:00:03]} 32. Qxc5+ {[%emt 0:00:51]} Kd8 {[%emt 0:00:10]} 33. Ne4 {[%emt 0:02:04]} Rxb2 {[%emt 0:00:14]} 34. Qxd4+ {[%emt 0:00:00]} Ke7 {[%emt 0:00:19]} 35. Qxb2 {[%emt 0:00:04]} Rd8 {[%emt 0:00:18]} 36. g3 {[%emt 0:00:12]} Rd1+ {[%emt 0:00:12]} 37. Kg2 {[%emt 0:00:00]} Rd7 {[%emt 0:00:27]} 38. Qb4+ {[%emt 0:00:48]} Kd8 {[%emt 0:00:23]} 39. e6 {[%emt 0:00:09]} Rc7 {[%emt 0:00:33]} 40. Qd6+ {[%emt 0:00:06]} Kc8 {[%emt 0:00:20]} 41. Nc5 {[%emt 0:00:09]} Kb8 {[%emt 0:00:18]} 42. Na6+ {[%emt 0:00:20]} Kb7 {[%emt 0:00:06]} 43. Qxc7+ {[%emt 0:00:16]} Kxa6 {[%emt 0:00:07]} 44. Qb8 {[%emt 0:00:15]} h5 {[%emt 0:00:03]} 45. e7 {[%emt 0:00:17]} g5 {[%emt 0:00:03]} 46. e8=Q {[%emt 0:00:18]} g4 {[%emt 0:00:06]} 47. Qeb5# {[%emt 0:00:08]} 1-0

[Event "White Rook U14 Final 2019"]
[Site "Sochi"]
[Date "2019.06.06"]
[Round "4.36"]
[White "Poluektova, Arina"]
[Black "Golikova, Alisa"]
[Result "0-1"]
[ECO "C02"]
[WhiteElo "1313"]
[BlackElo "1252"]
[Annotator "NA RC"]
[PlyCount "74"]
[EventDate "2019.06.02"]
[EventCountry "RUS"]
[SourceTitle "playchess.com"]
[Source "ChessBase"]
[SourceQuality "1"]
[TimeControl "5400+30"]

1. e4 {[%emt 0:00:00]} e6 {[%emt 0:00:00]} 2. d4 {[%emt 0:00:07]} d5 {[%emt 0:00:08]} 3. e5 {[%emt 0:00:08]} c5 {[%emt 0:00:00]} 4. c3 {[%emt 0:00:08]} Nc6 {[%emt 0:00:00]} 5. Nf3 {[%emt 0:00:08]} Qb6 {[%emt 0:00:16]} 6. Qb3 {[%emt 0:01:36]} cxd4 {[%emt 0:04:56]} 7. Qxb6 {[%emt 0:00:40]} axb6 {[%emt 0:00:08]} 8. cxd4 {[%emt 0:00:16]} Nb4 {[%emt 0:03:05]} 9. Na3 {[%emt 0:02:23]} Rxa3 {[%emt 0:06:34]} 10. bxa3 {[%emt 0:01:13]} Nc2+ {[%emt 0:00:00]} 11. Kd1 {[%emt 0:01:29]} Nxa1 {[%emt 0:00:08]} 12. Bb2 {[%emt 0:05:11]} Bd7 {[%emt 0:00:56]} 13. Kd2 {[%emt 0:02:56]} Nh6 {[%emt 0:03:53]} 14. h3 {[%emt 0:01:22]} Be7 {[%emt 0:07:46]} 15. Bd3 {[%emt 0:00:41]} O-O {[%emt 0:00:32]} 16. Rxa1 {[%emt 0:00:25]} Ra8 {[%emt 0:00:08]} 17. Rc1 {[%emt 0:00:40]} Bc6 {[%emt 0:10:30]} 18. Rc3 {[%emt 0:00:56]} b5 {[%emt 0:02:45]} 19. Rc2 {[%emt 0:05:17]} g6 {[%emt 0:04:03]} 20. g4 {[%emt 0:02:44]} Bxa3 {[%emt 0:01:58]} 21. Bxa3 {[%emt 0:00:15]} Rxa3 {[%emt 0:00:16]} 22. Rb2 {[%emt 0:03:48]} Kg7 {[%emt 0:05:45]} 23. Ng1 {[%emt 0:02:37]} Ng8 {[%emt 0:07:39]} 24. Ne2 {[%emt 0:00:23]} b4 {[%emt 0:01:28]} 25. Nc1 {[%emt 0:04:34]} Ra4 {[%emt 0:09:07]} 26. Bc2 {[%emt 0:02:51]} Ra7 {[%emt 0:02:56]} 27. Rxb4 {[%emt 0:02:27]} Ne7 {[%emt 0:00:37]} 28. Rb2 {[%emt 0:00:52]} Nc8 {[%emt 0:00:29]} 29. Nd3 {[%emt 0:00:52]} b5 {[%emt 0:00:45]} 30. Nc5 {[%emt 0:00:49]} Nb6 {[%emt 0:02:36]} 31. Bd3 {[%emt 0:06:02]} Nc4+ {[%emt 0:00:37]} 32. Bxc4 {[%emt 0:00:34]} dxc4 {[%emt 0:00:15]} 33. Kc3 {[%emt 0:00:14]} Ra3+ {[%emt 0:02:20]} 34. Kc2 {[%emt 0:00:52]} Rxh3 {[%emt 0:08:09]} 35. Na6 {[%emt 0:05:45]} Be4+ {[%emt 0:02:05]} 36. Kd1 {[%emt 0:02:55]} c3 {[%emt 0:01:08]} 37. Rxb5 {[%emt 0:00:12]} Bd3 {[%emt 0:04:08]} 0-1

[Event "White Rook U14 Final 2019"]
[Site "Sochi"]
[Date "2019.06.06"]
[Round "5.2"]
[White "Pingin, Artem"]
[Black "Munkhzul, Davaakhuu"]
[Result "0-1"]
[ECO "C00"]
[WhiteElo "2108"]
[BlackElo "1806"]
[Annotator "RC"]
[PlyCount "144"]
[EventDate "2019.06.02"]
[EventCountry "RUS"]
[SourceTitle "playchess.com"]
[Source "ChessBase"]
[SourceQuality "1"]
[TimeControl "5400+30"]

1. e4 {[%emt 0:00:00]} c5 {[%emt 0:00:00]} 2. Nf3 {[%emt 0:00:00]} e6 {[%emt 0:00:00]} 3. g3 {[%emt 0:00:00]} Nc6 {[%emt 0:00:00]} 4. Bg2 {[%emt 0:00:00]} Nf6 {[%emt 0:01:28]} 5. Qe2 {[%emt 0:01:20]} Be7 {[%emt 0:01:50]} 6. O-O {[%emt 0:00:49]} O-O {[%emt 0:00:20]} 7. c3 {[%emt 0:00:00]} d5 {[%emt 0:01:00]} 8. e5 {[%emt 0:00:48]} Nd7 {[%emt 0:00:33]} 9. d4 {[%emt 0:00:17]} a6 {[%emt 0:07:01]} 10. Be3 {[%emt 0:04:08]} b5 {[%emt 0:01:27]} 11. Nbd2 {[%emt 0:02:38]} Bb7 {[%emt 0:02:57]} 12. h4 {[%emt 0:02:56]} b4 {[%emt 0:06:05]} 13. Rfc1 {[%emt 0:04:56]} c4 {[%emt 0:04:01]} 14. h5 {[%emt 0:06:04]} h6 {[%emt 0:02:02]} 15. Nh2 {[%emt 0:01:46]} Re8 {[%emt 0:02:23]} 16. Ng4 {[%emt 0:00:59]} Bf8 {[%emt 0:01:11]} 17. f4 {[%emt 0:14:28]} a5 {[%emt 0:05:29]} 18. Qf2 {[%emt 0:03:49]} f5 {[%emt 0:12:02]} 19. exf6 {[%emt 0:06:47]} Nxf6 {[%emt 0:00:25]} 20. Nxf6+ {[%emt 0:01:21]} Qxf6 {[%emt 0:00:03]} 21. f5 {[%emt 0:00:46]} Rad8 {[%emt 0:09:06]} 22. fxe6 {[%emt 0:01:47]} Qxe6 {[%emt 0:01:40]} 23. Re1 {[%emt 0:00:49]} Qg4 {[%emt 0:03:30]} 24. Bf3 {[%emt 0:02:32]} Qf5 {[%emt 0:01:14]} 25. Qg2 {[%emt 0:01:33]} Kh8 {[%emt 0:05:59]} 26. Nf1 {[%emt 0:03:39]} Be7 {[%emt 0:04:44]} 27. Bf4 {[%emt 0:01:18]} bxc3 {[%emt 0:06:56]} 28. bxc3 {[%emt 0:00:41]} Qf7 {[%emt 0:05:05]} 29. Rab1 {[%emt 0:04:50]} Bc8 {[%emt 0:04:47]} 30. Rb5 {[%emt 0:00:35]} Be6 {[%emt 0:00:49]} 31. Rb6 {[%emt 0:01:16]} Rc8 {[%emt 0:00:29]} 32. Rxe6 {[%emt 0:00:32]} Qxe6 {[%emt 0:01:16]} 33. Bxd5 {[%emt 0:00:37]} Qe1 {[%emt 0:02:17]} 34. Bd2 {[%emt 0:02:25]} Qd1 {[%emt 0:00:43]} 35. Bf3 {[%emt 0:02:11]} Qc2 {[%emt 0:01:24]} 36. Rxc6 {[%emt 0:04:22]} Qxa2 {[%emt 0:00:34]} 37. Rxc8 {[%emt 0:05:10]} Rxc8 {[%emt 0:00:02]} 38. d5 {[%emt 0:01:01]} a4 {[%emt 0:01:11]} 39. Qe2 {[%emt 0:01:15]} Bc5+ {[%emt 0:00:50]} 40. Kh1 {[%emt 0:00:55]} Rf8 {[%emt 0:01:23]} 41. Bf4 {[%emt 0:05:50]} Qb1 {[%emt 0:01:12]} 42. Qxc4 {[%emt 0:02:18]} Ba7 {[%emt 0:02:07]} 43. d6 {[%emt 0:05:34]} a3 {[%emt 0:00:16]} 44. Bd5 {[%emt 0:00:31]} a2 {[%emt 0:00:34]} 45. Qxa2 {[%emt 0:00:59]} Qxf1+ {[%emt 0:00:33]} 46. Kh2 {[%emt 0:00:00]} Bg1+ {[%emt 0:00:00]} 47. Kh1 {[%emt 0:00:08]} Be3+ {[%emt 0:00:46]} 48. Kh2 {[%emt 0:00:00]} Rxf4 {[%emt 0:00:28]} 49. Bg2 {[%emt 0:00:45]} Qg1+ {[%emt 0:01:03]} 50. Kh3 {[%emt 0:00:00]} Rf8 {[%emt 0:00:37]} 51. d7 {[%emt 0:00:18]} Qd1 {[%emt 0:00:15]} 52. Qd5 {[%emt 0:00:10]} Qxd5 {[%emt 0:00:01]} 53. Bxd5 {[%emt 0:00:04]} Bb6 {[%emt 0:01:34]} 54. Kg4 {[%emt 0:00:38]} Rf6 {[%emt 0:00:32]} 55. Be4 {[%emt 0:00:15]} Rd6 {[%emt 0:00:00]} 56. Bf5 {[%emt 0:00:00]} Ba5 {[%emt 0:00:00]} 57. Kf4 {[%emt 0:00:15]} Bxc3 {[%emt 0:00:29]} 58. Ke4 {[%emt 0:00:00]} Bf6 {[%emt 0:00:00]} 59. g4 {[%emt 0:00:00]} Kg8 {[%emt 0:00:00]} 60. Ke3 {[%emt 0:00:00]} Kf7 {[%emt 0:00:25]} 61. Bg6+ {[%emt 0:00:17]} Ke7 {[%emt 0:00:00]} 62. Bf5 {[%emt 0:00:00]} Rd4 {[%emt 0:00:33]} 63. Kf3 {[%emt 0:00:14]} Kd6 {[%emt 0:00:00]} 64. Ke3 {[%emt 0:00:00]} Ke5 {[%emt 0:00:34]} 65. Kf3 {[%emt 0:00:13]} Bg5 {[%emt 0:00:00]} 66. Ke2 {[%emt 0:00:04]} Kf4 {[%emt 0:00:24]} 67. Kf1 {[%emt 0:00:00]} Kf3 {[%emt 0:00:11]} 68. d8=R {[%emt 0:00:00]} Bxd8 {[%emt 0:00:11]} 69. Bd3 {[%emt 0:00:29]} Rxd3 {[%emt 0:00:05]} 70. Kg1 {[%emt 0:00:04]} Rd1+ {[%emt 0:00:00]} 71. Kh2 {[%emt 0:00:00]} Bc7+ {[%emt 0:00:11]} 72. Kh3 {[%emt 0:00:00]} Rh1# {[%emt 0:00:04]} 0-1

[Event "White Rook U14 Final 2019"]
[Site "Sochi"]
[Date "2019.06.06"]
[Round "5.3"]
[White "Aldar Burentegsh"]
[Black "Shirkunov, Alexandr"]
[Result "1/2-1/2"]
[ECO "B13"]
[WhiteElo "1812"]
[BlackElo "1557"]
[Annotator "NA RC"]
[PlyCount "120"]
[EventDate "2019.06.02"]
[EventCountry "RUS"]
[SourceTitle "playchess.com"]
[Source "ChessBase"]
[SourceQuality "1"]
[TimeControl "5400+30"]

1. e4 {[%emt 0:00:00]} c6 {[%emt 0:00:00]} 2. d4 {[%emt 0:00:00]} d5 {[%emt 0:00:00]} 3. exd5 {[%emt 0:00:00]} cxd5 {[%emt 0:00:00]} 4. Bd3 {[%emt 0:00:00]} Nc6 {[%emt 0:00:00]} 5. c3 {[%emt 0:00:00]} Nf6 {[%emt 0:00:00]} 6. h3 {[%emt 0:00:00]} g6 {[%emt 0:00:00]} 7. Nf3 {[%emt 0:00:00] B13: Caro-Kann: Exchange Variation and Panov-Botvinnik Attack} Bf5 {[%emt 0:00:04]} 8. Bg5 {[%emt 0:00:12]} (8. Be2 Bg7 9. O-O O-O 10. Bf4 Ne4 11. Nbd2 Re8 12. Re1 h6 13. Bf1 g5 14. Bh2 Qd7 15. Nxe4 Bxe4 {1-0 (35) Caruana,F (2828)-Shankland,S (2725) chess.com INT 2019}) 8... Bg7 {[%emt 0:00:02]} 9. O-O {[%emt 0:01:02]} O-O {[%emt 0:01:46]} 10. Bxf5 {[%emt 0:00:00]} gxf5 {[%emt 0:00:02]} 11. Bxf6 {[%emt 0:00:00]} Bxf6 {[%emt 0:00:08]} 12. Qd3 $146 {[%emt 0:00:08]} ({Predecessor:} 12. Re1 e6 13. Nbd2 Kh8 14. Ne5 Bxe5 15. dxe5 Rg8 {0-1 (60) Kocheev,A (2355)-Chigaev,M (2526) Minsk 2015}) 12... e6 {[%emt 0:00:20]} 13. Nbd2 {[%emt 0:00:09]} Qc7 {[%emt 0:02:45]} 14. Rfe1 {[%emt 0:00:20]} Kh8 {[%emt 0:05:13]} 15. c4 {[%emt 0:05:07]} dxc4 {[%emt 0:02:30]} 16. Qxc4 {[%emt 0:00:07]} Rfd8 {[%emt 0:01:59]} 17. Nb3 {[%emt 0:02:38]} Qf4 {[%emt 0:01:52]} 18. Rad1 {[%emt 0:01:10]} Rd5 {[%emt 0:04:04]} 19. Re3 {[%emt 0:05:51]} Rad8 {[%emt 0:05:53]} 20. g3 {[%emt 0:03:34]} Qh6 {[%emt 0:12:43]} 21. Kg2 {[%emt 0:02:53]} ({White should play} 21. Kh2) 21... Rg8 {[%emt 0:04:14]} (21... e5 $17 22. Ree1 Kg7) 22. Nc5 {[%emt 0:00:53] [#]} ({Better is} 22. Qc1 $15) 22... Rxg3+ $1 {[%emt 0:10:17]} 23. fxg3 {[%emt 0:10:10]} Qxe3 {[%emt 0:00:36]} 24. Nb3 {[%emt 0:01:12]} Qh6 {[%emt 0:17:35]} 25. Rd3 {[%emt 0:04:05]} Qf8 {[%emt 0:00:53]} 26. a3 {[%emt 0:02:52]} (26. Nc1 $142) 26... Qd8 {[%emt 0:03:46]} 27. Nc5 {[%emt 0:38:54]} Nxd4 {[%emt 0:08:20]} 28. Nxb7 {[%emt 0:00:22]} Qb6 {[%emt 0:00:08]} 29. Qb4 {[%emt 0:11:32]} Qxb4 {[%emt 0:02:17]} 30. axb4 {[%emt 0:00:07]} Nxf3 {[%emt 0:04:14]} 31. Rxd5 {[%emt 0:00:34]} Ne1+ {[%emt 0:00:04]} 32. Kf1 {[%emt 0:00:08]} exd5 {[%emt 0:00:03]} 33. Kxe1 {[%emt 0:00:08]} Bxb2 {[%emt 0:00:03]} 34. b5 {[%emt 0:00:33]} Kg8 {[%emt 0:02:06]} 35. Nd6 {[%emt 0:00:24]} f6 {[%emt 0:01:53]} 36. Nxf5 {[%emt 0:00:10]} Kf7 {[%emt 0:01:11]} 37. Ke2 {[%emt 0:03:05]} Ke6 {[%emt 0:02:01]} 38. g4 {[%emt 0:03:04]} Kd7 {[%emt 0:02:55]} 39. Ng7 $2 {[%emt 0:03:26]} (39. Kd2 $17) 39... Kc7 {[%emt 0:01:14]} 40. Nf5 {[%emt 0:01:49]} Kb6 {[%emt 0:00:11]} 41. Ne7 {[%emt 0:00:30]} Kxb5 {[%emt 0:00:56]} 42. Nxd5 {[%emt 0:00:17]} Kc4 {[%emt 0:01:25]} 43. Ne3+ {[%emt 0:00:32]} Kb3 {[%emt 0:00:24]} 44. Kd3 {[%emt 0:00:08]} a5 {[%emt 0:00:00]} 45. Nc4 {[%emt 0:01:22]} a4 {[%emt 0:00:10]} 46. h4 {[%emt 0:00:39]} Be5 {[%emt 0:02:00]} 47. Nd2+ {[%emt 0:00:43]} Kb4 {[%emt 0:00:43]} 48. Kc2 {[%emt 0:00:09]} a3 {[%emt 0:00:29]} 49. Kb1 {[%emt 0:00:43]} Kc3 {[%emt 0:00:51]} 50. Nf3 {[%emt 0:00:00]} Kd3 {[%emt 0:00:34]} 51. g5 {[%emt 0:00:58]} Ke4 $19 {[%emt 0:00:57]} 52. Nd2+ {[%emt 0:00:41]} Kf5 {[%emt 0:00:10]} 53. Nc4 {[%emt 0:00:32]} Kg4 {[%emt 0:01:25]} 54. Nxa3 {[%emt 0:00:52]} f5 {[%emt 0:00:13]} 55. Kc1 {[%emt 0:00:00]} Kxh4 {[%emt 0:00:39]} 56. Kd2 {[%emt 0:00:27]} Bf4+ {[%emt 0:00:00]} 57. Ke2 {[%emt 0:00:09]} Kg4 {[%emt 0:00:27]} 58. Nc2 {[%emt 0:00:00]} Bxg5 {[%emt 0:00:06]} 59. Nd4 {[%emt 0:00:38] [#]} h5 $2 {[%emt 0:00:30]} ({Better is} 59... f4 $1 $19 60. Kf2 Bd8) 60. Nxf5 {[%emt 0:00:16]} Kxf5 {[%emt 0:00:18]} 1/2-1/2

[Event "White Rook U14 Final 2019"]
[Site "Sochi"]
[Date "2019.06.06"]
[Round "5.4"]
[White "Toledo Flores, Marianna"]
[Black "Unurzul, Davaakhuu"]
[Result "0-1"]
[ECO "E06"]
[WhiteElo "1530"]
[BlackElo "1442"]
[Annotator "NA RC"]
[PlyCount "138"]
[EventDate "2019.06.02"]
[EventCountry "RUS"]
[SourceTitle "playchess.com"]
[Source "ChessBase"]
[SourceQuality "1"]
[TimeControl "5400+30"]

1. Nf3 {[%emt 0:00:00]} Nc6 {[%emt 0:00:00]} 2. d4 {[%emt 0:00:00]} d5 {[%emt 0:00:00]} 3. c4 {[%emt 0:00:00]} Nf6 {[%emt 0:01:03]} 4. g3 {[%emt 0:00:05]} e6 {[%emt 0:01:05]} 5. Bg2 {[%emt 0:00:12]} Be7 {[%emt 0:00:43]} 6. O-O {[%emt 0:00:12]} O-O {[%emt 0:00:31]} 7. Qc2 {[%emt 0:00:56]} h6 {[%emt 0:09:46]} 8. Rd1 {[%emt 0:00:00]} Nb4 {[%emt 0:11:56]} 9. Qb3 {[%emt 0:03:23]} a5 {[%emt 0:03:07]} 10. a4 {[%emt 0:02:55]} Ne4 {[%emt 0:14:44]} 11. Ne5 {[%emt 0:03:24]} c5 {[%emt 0:11:58]} 12. Nc3 {[%emt 0:02:48]} cxd4 {[%emt 0:03:49]} 13. Nxe4 {[%emt 0:07:21]} dxe4 {[%emt 0:00:07]} 14. Bxe4 {[%emt 0:00:32]} Qc7 {[%emt 0:04:28]} 15. f4 {[%emt 0:08:47]} Bc5 {[%emt 0:00:47]} 16. Kh1 {[%emt 0:03:04]} Rb8 {[%emt 0:08:51]} 17. Bg2 {[%emt 0:03:58]} b6 {[%emt 0:06:00]} 18. Nf3 {[%emt 0:05:37]} Rd8 {[%emt 0:05:22]} 19. Bd2 {[%emt 0:05:46]} Bb7 {[%emt 0:03:03]} 20. Be1 {[%emt 0:01:19]} Be4 {[%emt 0:02:07]} 21. Rd2 {[%emt 0:01:30]} d3 {[%emt 0:02:06]} 22. exd3 {[%emt 0:00:30]} Nxd3 {[%emt 0:00:49]} 23. Re2 {[%emt 0:04:37]} Qb7 {[%emt 0:02:31]} 24. Nh4 {[%emt 0:01:35]} Bxg2+ {[%emt 0:01:02]} 25. Rxg2 {[%emt 0:00:24]} g5 {[%emt 0:01:27]} 26. fxg5 {[%emt 0:05:58]} hxg5 {[%emt 0:00:13]} 27. Qc3 {[%emt 0:03:47]} gxh4 {[%emt 0:00:36]} 28. gxh4+ {[%emt 0:00:17]} Kf8 {[%emt 0:00:10]} 29. Qg7+ {[%emt 0:02:00]} Ke7 {[%emt 0:00:42]} 30. Qg5+ {[%emt 0:03:16]} Kd7 {[%emt 0:00:30]} 31. Rd1 {[%emt 0:01:26]} Kc8 {[%emt 0:00:44]} 32. Qg4 {[%emt 0:04:49]} f5 {[%emt 0:01:04]} 33. Qe2 {[%emt 0:00:43]} Nf2+ {[%emt 0:00:45]} 34. Bxf2 {[%emt 0:01:08]} Rxd1+ {[%emt 0:00:06]} 35. Qxd1 {[%emt 0:00:08]} Bxf2 {[%emt 0:00:19]} 36. Qe2 {[%emt 0:00:25]} Bxh4 {[%emt 0:01:36]} 37. Qxe6+ {[%emt 0:03:41]} Kd8 {[%emt 0:00:04]} 38. Kg1 {[%emt 0:01:03]} Qe7 {[%emt 0:00:02]} 39. Qxf5 {[%emt 0:08:03]} Qe1+ {[%emt 0:00:08]} 40. Qf1 {[%emt 0:00:00]} Qxf1+ {[%emt 0:00:14]} 41. Kxf1 {[%emt 0:00:24]} Kd7 {[%emt 0:00:40]} 42. Ke2 {[%emt 0:01:12]} Kc6 {[%emt 0:00:07]} 43. Kd3 {[%emt 0:00:14]} Kc5 {[%emt 0:00:10]} 44. b3 {[%emt 0:00:31]} Rd8+ {[%emt 0:00:11]} 45. Kc2 {[%emt 0:00:39]} Kb4 {[%emt 0:00:10]} 46. Rg4 {[%emt 0:01:07]} Be1 {[%emt 0:00:00]} 47. Rg2 {[%emt 0:00:00]} Rh8 {[%emt 0:00:00]} 48. Re2 {[%emt 0:00:00]} Bc3 {[%emt 0:00:47]} 49. Rg2 {[%emt 0:01:28]} Rh3 {[%emt 0:00:13]} 50. Rf2 {[%emt 0:00:30]} Be5 {[%emt 0:00:00]} 51. Rf5 {[%emt 0:00:25]} Rxh2+ {[%emt 0:00:26]} 52. Kd3 {[%emt 0:00:06]} Bc7 {[%emt 0:00:00]} 53. Rb5+ {[%emt 0:00:14]} Ka3 {[%emt 0:00:00]} 54. c5 {[%emt 0:01:12]} bxc5 {[%emt 0:01:23]} 55. Rxc5 {[%emt 0:01:37]} Bd8 {[%emt 0:01:04]} 56. Rb5 {[%emt 0:00:31]} Rh7 {[%emt 0:00:39]} 57. Kc4 {[%emt 0:00:35]} Ra7 {[%emt 0:00:14]} 58. Kd5 {[%emt 0:00:44]} Be7 {[%emt 0:00:12]} 59. Kc4 {[%emt 0:00:50]} Bb4 {[%emt 0:00:04]} 60. Rh5 {[%emt 0:00:50]} Rc7+ {[%emt 0:00:03]} 61. Kb5 {[%emt 0:00:29]} Kxb3 {[%emt 0:00:00]} 62. Rh3+ {[%emt 0:00:02]} Rc3 {[%emt 0:00:00]} 63. Rh5 {[%emt 0:00:50]} Re3 {[%emt 0:00:43]} 64. Rf5 {[%emt 0:01:13]} Re4 {[%emt 0:00:08]} 65. Rf1 {[%emt 0:02:41]} Re5+ {[%emt 0:00:00]} 66. Ka6 {[%emt 0:00:19]} Kxa4 {[%emt 0:00:35]} 67. Rf3 {[%emt 0:00:39]} Re6+ {[%emt 0:00:13]} 68. Kb7 {[%emt 0:00:41]} Kb5 {[%emt 0:00:03]} 69. Rf5+ {[%emt 0:00:24]} Bc5 {[%emt 0:00:00]} 0-1